[Event "*** Titled Tuesday Blitz"]
[Site "Chess.com"]
[Date "2020.04.14"]
[Round "5"]
[White "Andro2"]
[Black "Saxar85"]
[Result "0-1"]
[WhiteElo "2418"]
[BlackElo "2607"]
[TimeControl "180+1"]
[EndTime "10:50:45 PDT"]
[Termination "Saxar85 won by resignation"]

1. e4 {[%clk 0:03:00.9]} 1... e5 {[%clk 0:02:59.1]} 2. Nf3 {[%clk 0:03:00]} 2...
Nc6 {[%clk 0:02:58.7]} 3. Bc4 {[%clk 0:03:00.4]} 3... Bc5 {[%clk 0:02:57.7]} 4.
O-O {[%clk 0:02:59.8]} 4... d6 {[%clk 0:02:57.1]} 5. d3 {[%clk 0:02:58.9]} 5...
Bg4 {[%clk 0:02:49.1]} 6. Nbd2 {[%clk 0:02:58.7]} 6... Qd7 {[%clk 0:02:30.5]} 7.
c3 {[%clk 0:02:55.4]} 7... Nge7 {[%clk 0:02:22.8]} 8. b4 {[%clk 0:02:50.1]} 8...
Bb6 {[%clk 0:02:22.1]} 9. a4 {[%clk 0:02:50.8]} 9... a5 {[%clk 0:02:21.3]} 10.
b5 {[%clk 0:02:49.8]} 10... Nd8 {[%clk 0:02:21.1]} 11. h3 {[%clk 0:02:40.7]}
11... Be6 {[%clk 0:02:11]} 12. d4 {[%clk 0:02:37.9]} 12... f6 {[%clk 0:02:03]}
13. Qe2 {[%clk 0:02:23.6]} 13... O-O {[%clk 0:01:59.2]} 14. Ba3 {[%clk
0:02:17.9]} 14... Ng6 {[%clk 0:01:51.5]} 15. Rfd1 {[%clk 0:01:55.4]} 15... Nf4
{[%clk 0:01:46.2]} 16. Qf1 {[%clk 0:01:55.8]} 16... Kh8 {[%clk 0:01:44.8]} 17.
Kh2 {[%clk 0:01:47]} 17... Qf7 {[%clk 0:01:36.2]} 18. Bxe6 {[%clk 0:01:39.6]}
18... Ndxe6 {[%clk 0:01:35.4]} 19. g3 {[%clk 0:01:37.8]} 19... Ng6 {[%clk
0:01:32.3]} 20. Nc4 {[%clk 0:01:36.9]} 20... f5 {[%clk 0:01:28.1]} 21. Nxb6
{[%clk 0:01:27.3]} 21... cxb6 {[%clk 0:01:27.5]} 22. Bxd6 {[%clk 0:01:26.4]}
22... fxe4 {[%clk 0:01:27.1]} 23. Nxe5 {[%clk 0:01:20.4]} 23... Nxe5 {[%clk
0:01:26.2]} 24. Bxe5 {[%clk 0:01:20.5]} 24... Ng5 {[%clk 0:01:25.6]} 25. Ra2
{[%clk 0:01:14.2]} 25... Qxa2 {[%clk 0:01:20.2]} 26. Bf4 {[%clk 0:00:59.6]}
26... Nf3+ {[%clk 0:01:13.8]} 27. Kg2 {[%clk 0:00:59.2]} 27... Rac8 {[%clk
0:01:08.1]} 28. d5 {[%clk 0:00:56.2]} 28... Qc4 {[%clk 0:00:42.3]} 29. Qxc4
{[%clk 0:00:37.6]} 29... Rxc4 {[%clk 0:00:42.2]} 30. d6 {[%clk 0:00:38.3]} 30...
Rd8 {[%clk 0:00:42.2]} 31. h4 {[%clk 0:00:30.9]} 31... Rd7 {[%clk 0:00:39.9]}
32. Rd5 {[%clk 0:00:26.8]} 32... Kg8 {[%clk 0:00:38.1]} 33. Rf5 {[%clk 0:00:20]}
33... Rc5 {[%clk 0:00:35.9]} 34. Rxc5 {[%clk 0:00:11.2]} 34... bxc5 {[%clk
0:00:35.9]} 35. Kh3 {[%clk 0:00:11.1]} 35... Kf7 {[%clk 0:00:34.8]} 36. Kg4
{[%clk 0:00:11.6]} 36... Ke6 {[%clk 0:00:34.9]} 37. h5 {[%clk 0:00:11.4]} 37...
Ne5+ {[%clk 0:00:33.7]} 38. Kg5 {[%clk 0:00:09.7]} 38... Rxd6 {[%clk 0:00:33.1]}
39. h6 {[%clk 0:00:08.7]} 39... g6 {[%clk 0:00:33]} 0-1

[Event "*** Titled Tuesday Blitz"]
[Site "Chess.com"]
[Date "2020.04.14"]
[Round "5"]
[White "GusKan67"]
[Black "kingmonkey2006"]
[Result "0-1"]
[WhiteElo "2415"]
[BlackElo "2600"]
[TimeControl "180+1"]
[EndTime "10:50:45 PDT"]
[Termination "kingmonkey2006 won by resignation"]

1. d4 {[%clk 0:03:00.9]} 1... Nf6 {[%clk 0:02:59.8]} 2. Nf3 {[%clk 0:02:59.9]}
2... e6 {[%clk 0:03:00.3]} 3. c4 {[%clk 0:02:59.4]} 3... d5 {[%clk 0:02:59.9]}
4. g3 {[%clk 0:02:59.4]} 4... Be7 {[%clk 0:02:59.1]} 5. Bg2 {[%clk 0:02:59.3]}
5... O-O {[%clk 0:02:59.8]} 6. O-O {[%clk 0:02:59.9]} 6... c6 {[%clk 0:03:00.4]}
7. Qc2 {[%clk 0:02:58.6]} 7... b6 {[%clk 0:03:00.9]} 8. Rd1 {[%clk 0:02:57]}
8... Bb7 {[%clk 0:03:01.5]} 9. Nc3 {[%clk 0:02:55.4]} 9... Na6 {[%clk 0:03:02]}
10. e4 {[%clk 0:02:52.4]} 10... Rc8 {[%clk 0:03:02.2]} 11. e5 {[%clk 0:02:36.1]}
11... Nd7 {[%clk 0:03:02.1]} 12. cxd5 {[%clk 0:02:32.4]} 12... cxd5 {[%clk
0:02:56.8]} 13. h4 {[%clk 0:02:27.9]} 13... b5 {[%clk 0:02:55.4]} 14. Qd3 {[%clk
0:02:16.9]} 14... Nb4 {[%clk 0:02:38.3]} 15. Qe2 {[%clk 0:02:04.7]} 15... Re8
{[%clk 0:02:26.6]} 16. Bg5 {[%clk 0:01:56.4]} 16... a6 {[%clk 0:02:21.8]} 17.
Rac1 {[%clk 0:01:22.1]} 17... Nb6 {[%clk 0:02:11.3]} 18. b3 {[%clk 0:01:14.7]}
18... Nc6 {[%clk 0:02:10.1]} 19. Qe3 {[%clk 0:01:10.8]} 19... Qd7 {[%clk
0:02:07.7]} 20. Nh2 {[%clk 0:01:09.3]} 20... Rc7 {[%clk 0:01:54.3]} 21. Ng4
{[%clk 0:01:06.5]} 21... Rec8 {[%clk 0:01:50.4]} 22. h5 {[%clk 0:01:00.4]} 22...
Qd8 {[%clk 0:01:45.7]} 23. Bxe7 {[%clk 0:00:55.2]} 23... Qxe7 {[%clk 0:01:46.6]}
24. h6 {[%clk 0:00:54.2]} 24... g6 {[%clk 0:01:45.5]} 25. Nf6+ {[%clk
0:00:52.4]} 25... Kh8 {[%clk 0:01:45.6]} 26. Bxd5 {[%clk 0:00:26]} 26... b4
{[%clk 0:00:39.3]} 27. Bxc6 {[%clk 0:00:22.4]} 27... Rxc6 {[%clk 0:00:40.2]} 28.
Nce4 {[%clk 0:00:20.6]} 28... Qc7 {[%clk 0:00:32.4]} 29. Rxc6 {[%clk 0:00:19.6]}
29... Qxc6 {[%clk 0:00:33.3]} 30. d5 {[%clk 0:00:19.2]} 30... Nxd5 {[%clk
0:00:32.6]} 31. Nxd5 {[%clk 0:00:10.8]} 31... exd5 {[%clk 0:00:33.2]} 32. Nd6
{[%clk 0:00:06.1]} 32... d4 {[%clk 0:00:33.4]} 33. Nxf7+ {[%clk 0:00:05.9]}
33... Kg8 {[%clk 0:00:33.6]} 0-1

[Event "*** Titled Tuesday Blitz"]
[Site "Chess.com"]
[Date "2020.04.14"]
[Round "5"]
[White "MacDaddyMac"]
[Black "GM_RobertoMogranzini"]
[Result "0-1"]
[WhiteElo "2296"]
[BlackElo "2511"]
[TimeControl "180+1"]
[EndTime "10:50:45 PDT"]
[Termination "GM_RobertoMogranzini won on time"]

1. e4 {[%clk 0:03:00.9]} 1... d5 {[%clk 0:02:59.7]} 2. exd5 {[%clk 0:03:00.4]}
2... Qxd5 {[%clk 0:03:00.6]} 3. Nc3 {[%clk 0:03:00.9]} 3... Qd8 {[%clk
0:03:01.5]} 4. Nge2 {[%clk 0:03:00.6]} 4... Nf6 {[%clk 0:03:02.4]} 5. g3 {[%clk
0:03:01.2]} 5... Bd7 {[%clk 0:03:01]} 6. Bg2 {[%clk 0:03:01.7]} 6... Bc6 {[%clk
0:03:01.9]} 7. O-O {[%clk 0:02:59.4]} 7... Bxg2 {[%clk 0:03:00.2]} 8. Kxg2
{[%clk 0:03:00.3]} 8... h5 {[%clk 0:03:00]} 9. d4 {[%clk 0:03:00.4]} 9... h4
{[%clk 0:02:59.7]} 10. h3 {[%clk 0:03:00.2]} 10... hxg3 {[%clk 0:02:57.7]} 11.
fxg3 {[%clk 0:03:00.3]} 11... Qd7 {[%clk 0:02:57.5]} 12. g4 {[%clk 0:02:51.3]}
12... Nxg4 {[%clk 0:02:52.4]} 13. hxg4 {[%clk 0:02:51.2]} 13... Qxg4+ {[%clk
0:02:52.6]} 14. Ng3 {[%clk 0:02:51.6]} 14... Qh3+ {[%clk 0:02:52.8]} 15. Kf3
{[%clk 0:02:51.9]} 15... Qd7 {[%clk 0:02:05.8]} 16. Rh1 {[%clk 0:02:26.2]} 16...
Rxh1 {[%clk 0:02:02.6]} 17. Nxh1 {[%clk 0:02:21.8]} 17... Nc6 {[%clk 0:02:02.3]}
18. Ng3 {[%clk 0:02:18.9]} 18... O-O-O {[%clk 0:01:57.9]} 19. Be3 {[%clk
0:02:12.6]} 19... f5 {[%clk 0:01:31.8]} 20. Kf2 {[%clk 0:01:53]} 20... e6 {[%clk
0:01:26.6]} 21. Qd3 {[%clk 0:01:09.8]} 21... Bd6 {[%clk 0:01:25.7]} 22. Nce2
{[%clk 0:01:04.3]} 22... Rg8 {[%clk 0:01:15.3]} 23. Rg1 {[%clk 0:00:47.7]} 23...
g5 {[%clk 0:01:13.9]} 24. Ke1 {[%clk 0:00:46.4]} 24... Nb4 {[%clk 0:01:05.2]}
25. Qb3 {[%clk 0:00:43.5]} 25... Nd5 {[%clk 0:00:53.3]} 26. Nxf5 {[%clk
0:00:33.3]} 26... exf5 {[%clk 0:00:36.7]} 27. Rxg5 {[%clk 0:00:19]} 27... Re8
{[%clk 0:00:33.8]} 28. Bd2 {[%clk 0:00:12]} 28... Qe6 {[%clk 0:00:28.1]} 29. Qd3
{[%clk 0:00:07.1]} 29... f4 {[%clk 0:00:25.2]} 30. Rg2 {[%clk 0:00:05.2]} 30...
Ne3 {[%clk 0:00:16.8]} 31. Bxe3 {[%clk 0:00:05]} 31... fxe3 {[%clk 0:00:17.7]}
32. Kd1 {[%clk 0:00:02.8]} 32... Qxa2 {[%clk 0:00:17.5]} 0-1

[Event "*** Titled Tuesday Blitz"]
[Site "Chess.com"]
[Date "2020.04.14"]
[Round "5"]
[White "Caclox"]
[Black "chenxiaoyuer"]
[Result "0-1"]
[WhiteElo "2472"]
[BlackElo "2105"]
[TimeControl "180+1"]
[EndTime "10:50:47 PDT"]
[Termination "chenxiaoyuer won on time"]

1. e4 {[%clk 0:02:45.3]} 1... c5 {[%clk 0:02:57.5]} 2. Nf3 {[%clk 0:02:35.2]}
2... d6 {[%clk 0:02:57.4]} 3. d4 {[%clk 0:02:35.6]} 3... cxd4 {[%clk 0:02:57.8]}
4. Nxd4 {[%clk 0:02:36.5]} 4... Nf6 {[%clk 0:02:58.1]} 5. Nc3 {[%clk 0:02:35.7]}
5... Nc6 {[%clk 0:02:58.4]} 6. Nxc6 {[%clk 0:02:34.9]} 6... bxc6 {[%clk
0:02:58.2]} 7. Bd3 {[%clk 0:02:35.4]} 7... g6 {[%clk 0:02:53.3]} 8. O-O {[%clk
0:02:33.5]} 8... Bg7 {[%clk 0:02:53]} 9. Bg5 {[%clk 0:02:33.8]} 9... O-O {[%clk
0:02:52.6]} 10. Qd2 {[%clk 0:02:34]} 10... d5 {[%clk 0:02:43.8]} 11. e5 {[%clk
0:02:18.1]} 11... Nd7 {[%clk 0:02:40.9]} 12. f4 {[%clk 0:02:13.9]} 12... Qb6+
{[%clk 0:02:24.2]} 13. Kh1 {[%clk 0:02:13.1]} 13... e6 {[%clk 0:02:24.3]} 14.
Na4 {[%clk 0:02:10.4]} 14... Qc7 {[%clk 0:02:18.3]} 15. Be7 {[%clk 0:02:09.7]}
15... Re8 {[%clk 0:02:14]} 16. Bd6 {[%clk 0:02:09.9]} 16... Qb7 {[%clk
0:02:11.8]} 17. c4 {[%clk 0:02:07.8]} 17... Bf8 {[%clk 0:02:09.7]} 18. c5 {[%clk
0:02:07.2]} 18... Bxd6 {[%clk 0:02:03.8]} 19. cxd6 {[%clk 0:02:08.1]} 19... c5
{[%clk 0:02:02.7]} 20. b3 {[%clk 0:02:02.7]} 20... Qc6 {[%clk 0:01:58]} 21. Rac1
{[%clk 0:01:56.2]} 21... Bb7 {[%clk 0:01:51.6]} 22. Qe2 {[%clk 0:01:40.5]} 22...
c4 {[%clk 0:01:40.9]} 23. Qf2 {[%clk 0:01:09.5]} 23... Ba6 {[%clk 0:01:28.2]}
24. Qh4 {[%clk 0:00:41]} 24... Kg7 {[%clk 0:01:03.2]} 25. Rf3 {[%clk 0:00:37.1]}
25... Rac8 {[%clk 0:00:54.3]} 26. Rh3 {[%clk 0:00:34.3]} 26... h5 {[%clk
0:00:52]} 27. Be2 {[%clk 0:00:04.5]} 27... Qb5 {[%clk 0:00:29.9]} 28. Nc3 {[%clk
0:00:03.7]} 28... Qb4 {[%clk 0:00:25]} 29. Qg5 {[%clk 0:00:02.8]} 29... cxb3
{[%clk 0:00:20.5]} 30. Rxh5 {[%clk 0:00:02.2]} 30... Rh8 {[%clk 0:00:17]} 31.
Rxh8 {[%clk 0:00:02.1]} 31... Rxh8 {[%clk 0:00:16.5]} 32. Bxa6 {[%clk
0:00:01.5]} 32... b2 {[%clk 0:00:15.1]} 0-1

[Event "*** Titled Tuesday Blitz"]
[Site "Chess.com"]
[Date "2020.04.14"]
[Round "5"]
[White "MFBerna"]
[Black "terrapin33"]
[Result "1-0"]
[WhiteElo "2337"]
[BlackElo "2139"]
[TimeControl "180+1"]
[EndTime "10:50:47 PDT"]
[Termination "MFBerna won by resignation"]

1. d4 {[%clk 0:03:00.9]} 1... Nc6 {[%clk 0:03:00.9]} 2. Nf3 {[%clk 0:02:58]}
2... Nb8 {[%clk 0:03:01.8]} 3. e4 {[%clk 0:02:47.6]} 3... d6 {[%clk 0:02:45.5]}
4. h3 {[%clk 0:02:45.9]} 4... g6 {[%clk 0:02:39.2]} 5. Nc3 {[%clk 0:02:44.8]}
5... Bg7 {[%clk 0:02:39.6]} 6. Bc4 {[%clk 0:02:44.6]} 6... Nf6 {[%clk
0:02:37.7]} 7. O-O {[%clk 0:02:42.5]} 7... O-O {[%clk 0:02:37.7]} 8. Bg5 {[%clk
0:02:38]} 8... Nxe4 {[%clk 0:02:30.4]} 9. Nxe4 {[%clk 0:02:38.9]} 9... d5 {[%clk
0:02:30.5]} 10. Bd3 {[%clk 0:02:39.8]} 10... dxe4 {[%clk 0:02:30.1]} 11. Bxe4
{[%clk 0:02:40.7]} 11... Nc6 {[%clk 0:02:28.6]} 12. c3 {[%clk 0:02:37.5]} 12...
h6 {[%clk 0:02:21]} 13. Bh4 {[%clk 0:02:15.7]} 13... f5 {[%clk 0:02:08.1]} 14.
Bc2 {[%clk 0:02:12.3]} 14... g5 {[%clk 0:02:07.3]} 15. Nxg5 {[%clk 0:01:56.3]}
15... hxg5 {[%clk 0:02:06.8]} 16. Bxg5 {[%clk 0:01:57.2]} 16... Qd6 {[%clk
0:02:00.8]} 17. Bb3+ {[%clk 0:01:47.2]} 17... e6 {[%clk 0:02:00.5]} 18. Re1
{[%clk 0:01:29]} 18... Na5 {[%clk 0:01:24.8]} 19. Bc2 {[%clk 0:01:27.7]} 19...
Bd7 {[%clk 0:01:23.6]} 20. Qh5 {[%clk 0:01:02.4]} 20... Rae8 {[%clk 0:00:57.7]}
21. Re3 {[%clk 0:00:53.8]} 21... Nc4 {[%clk 0:00:45.3]} 22. Rg3 {[%clk
0:00:52.2]} 22... Rf7 {[%clk 0:00:45.4]} 23. Bh6 {[%clk 0:00:41.1]} 23... Qe7
{[%clk 0:00:24.1]} 24. Re1 {[%clk 0:00:28.4]} 24... Qf6 {[%clk 0:00:23.7]} 25.
Rg6 {[%clk 0:00:22.8]} 25... Qe7 {[%clk 0:00:18.3]} 26. Bxg7 {[%clk 0:00:10]}
26... Rxg7 {[%clk 0:00:17.8]} 27. Bxf5 {[%clk 0:00:08.9]} 27... Rxg6 {[%clk
0:00:17.5]} 28. Bxg6 {[%clk 0:00:06.3]} 28... Rf8 {[%clk 0:00:17.5]} 29. d5
{[%clk 0:00:06.1]} 29... Qg7 {[%clk 0:00:17.5]} 30. dxe6 {[%clk 0:00:05.4]}
30... Bc6 {[%clk 0:00:18]} 31. Bf7+ {[%clk 0:00:05.5]} 31... Rxf7 {[%clk
0:00:18.5]} 32. exf7+ {[%clk 0:00:06.4]} 32... Kf8 {[%clk 0:00:17.8]} 33. Re8+
{[%clk 0:00:05.7]} 1-0

[Event "*** Titled Tuesday Blitz"]
[Site "Chess.com"]
[Date "2020.04.14"]
[Round "5"]
[White "IMTominho"]
[Black "Toro1234"]
[Result "1-0"]
[WhiteElo "2843"]
[BlackElo "2624"]
[TimeControl "180+1"]
[EndTime "10:50:48 PDT"]
[Termination "IMTominho won by resignation"]

1. d4 {[%clk 0:03:00.9]} 1... d5 {[%clk 0:02:59.7]} 2. c4 {[%clk 0:03:00.6]}
2... e6 {[%clk 0:03:00]} 3. Nc3 {[%clk 0:03:00.4]} 3... c6 {[%clk 0:03:00.4]} 4.
Nf3 {[%clk 0:03:00.4]} 4... dxc4 {[%clk 0:03:00]} 5. a4 {[%clk 0:03:00.7]} 5...
Bb4 {[%clk 0:02:59.1]} 6. g3 {[%clk 0:02:59.5]} 6... b5 {[%clk 0:02:55.2]} 7.
Bg2 {[%clk 0:02:59.4]} 7... Bb7 {[%clk 0:02:55.4]} 8. O-O {[%clk 0:02:59.2]}
8... a6 {[%clk 0:02:54.2]} 9. Ne5 {[%clk 0:02:57.1]} 9... Qc8 {[%clk 0:02:37.4]}
10. e4 {[%clk 0:02:41.1]} 10... Nf6 {[%clk 0:02:36]} 11. Bg5 {[%clk 0:02:28.5]}
11... Nbd7 {[%clk 0:02:34.8]} 12. Nxd7 {[%clk 0:02:21.1]} 12... Nxd7 {[%clk
0:02:32.9]} 13. d5 {[%clk 0:02:21.4]} 13... e5 {[%clk 0:01:59.6]} 14. dxc6
{[%clk 0:02:00.1]} 14... Bxc6 {[%clk 0:01:57.2]} 15. Nd5 {[%clk 0:01:59.4]}
15... Bc5 {[%clk 0:01:39.9]} 16. Bh3 {[%clk 0:01:34.9]} 16... Qb7 {[%clk
0:01:12.4]} 17. axb5 {[%clk 0:01:32.3]} 17... Bxb5 {[%clk 0:01:12.5]} 18. Qg4
{[%clk 0:01:07.6]} 18... h5 {[%clk 0:00:56.1]} 19. Qf3 {[%clk 0:00:57.9]} 19...
Bc6 {[%clk 0:00:36.6]} 20. Rfd1 {[%clk 0:00:49.7]} 20... Bd4 {[%clk 0:00:33.4]}
21. Rac1 {[%clk 0:00:35.8]} 21... Bxd5 {[%clk 0:00:20.9]} 22. exd5 {[%clk
0:00:36.7]} 22... O-O {[%clk 0:00:15]} 23. Rxc4 {[%clk 0:00:36.3]} 23... Rac8
{[%clk 0:00:13.4]} 24. Rc6 {[%clk 0:00:33.6]} 24... Rce8 {[%clk 0:00:05.9]} 25.
Qxh5 {[%clk 0:00:30.5]} 25... Nb6 {[%clk 0:00:02.5]} 26. Bf5 {[%clk 0:00:29.3]}
26... g6 {[%clk 0:00:02.2]} 27. Bxg6 {[%clk 0:00:27.5]} 27... fxg6 {[%clk
0:00:02.4]} 28. Rxg6+ {[%clk 0:00:28.4]} 28... Qg7 {[%clk 0:00:02.6]} 29. Rxg7+
{[%clk 0:00:21.8]} 29... Kxg7 {[%clk 0:00:03.5]} 30. Qh6+ {[%clk 0:00:22.1]}
30... Kg8 {[%clk 0:00:03.5]} 31. Qg6+ {[%clk 0:00:21.9]} 31... Kh8 {[%clk
0:00:03.8]} 32. Bf6+ {[%clk 0:00:22.5]} 32... Rxf6 {[%clk 0:00:03.5]} 33. Qxf6+
{[%clk 0:00:23.4]} 33... Kg8 {[%clk 0:00:04.2]} 34. Rxd4 {[%clk 0:00:20.3]} 1-0

[Event "*** Titled Tuesday Blitz"]
[Site "Chess.com"]
[Date "2020.04.14"]
[Round "5"]
[White "VerdeNotte"]
[Black "JulAnt"]
[Result "0-1"]
[WhiteElo "2673"]
[BlackElo "2474"]
[TimeControl "180+1"]
[EndTime "10:50:48 PDT"]
[Termination "JulAnt won by resignation"]

1. e4 {[%clk 0:03:00.9]} 1... c5 {[%clk 0:02:57.8]} 2. Nc3 {[%clk 0:03:00.3]}
2... e6 {[%clk 0:02:57.9]} 3. Nf3 {[%clk 0:02:59.9]} 3... d6 {[%clk 0:02:56.2]}
4. Bb5+ {[%clk 0:02:54.9]} 4... Nd7 {[%clk 0:02:51.1]} 5. d4 {[%clk 0:02:54.4]}
5... cxd4 {[%clk 0:02:50.8]} 6. Qxd4 {[%clk 0:02:54.4]} 6... a6 {[%clk
0:02:48.4]} 7. Bg5 {[%clk 0:02:52.1]} 7... Nf6 {[%clk 0:02:44.4]} 8. Bxd7+
{[%clk 0:02:44.9]} 8... Bxd7 {[%clk 0:02:44.6]} 9. O-O-O {[%clk 0:02:34.6]} 9...
Be7 {[%clk 0:02:39.8]} 10. e5 {[%clk 0:02:30]} 10... dxe5 {[%clk 0:02:30.4]} 11.
Nxe5 {[%clk 0:02:30.9]} 11... Bc6 {[%clk 0:02:22.1]} 12. Nxc6 {[%clk 0:02:16.7]}
12... bxc6 {[%clk 0:02:23]} 13. Bxf6 {[%clk 0:02:11.2]} 13... Bxf6 {[%clk
0:02:18]} 14. Qc5 {[%clk 0:02:06.3]} 14... Qc7 {[%clk 0:02:13.6]} 15. Ne4 {[%clk
0:01:42.9]} 15... Qf4+ {[%clk 0:01:53.2]} 16. Nd2 {[%clk 0:01:21.2]} 16... Rc8
{[%clk 0:01:45.8]} 17. g3 {[%clk 0:01:05.5]} 17... Qb8 {[%clk 0:01:25]} 18. Nc4
{[%clk 0:01:01.6]} 18... Be7 {[%clk 0:01:10.4]} 19. Nd6+ {[%clk 0:01:01.3]}
19... Bxd6 {[%clk 0:00:59.8]} 20. Rxd6 {[%clk 0:01:01.4]} 20... O-O {[%clk
0:00:56.5]} 21. Rhd1 {[%clk 0:00:58.5]} 21... h6 {[%clk 0:00:35.1]} 22. a4
{[%clk 0:00:54.5]} 22... Rfd8 {[%clk 0:00:23.5]} 23. Rxd8+ {[%clk 0:00:49.2]}
23... Rxd8 {[%clk 0:00:24.4]} 24. Rxd8+ {[%clk 0:00:48.8]} 24... Qxd8 {[%clk
0:00:25.3]} 25. Qxc6 {[%clk 0:00:48.7]} 25... Qd4 {[%clk 0:00:25.4]} 26. Qa8+
{[%clk 0:00:33.3]} 26... Kh7 {[%clk 0:00:24.6]} 27. Qxa6 {[%clk 0:00:34.2]}
27... Qxf2 {[%clk 0:00:22.7]} 28. Qd3+ {[%clk 0:00:30.5]} 28... f5 {[%clk
0:00:21.9]} 29. b3 {[%clk 0:00:22.5]} 29... e5 {[%clk 0:00:19.9]} 30. a5 {[%clk
0:00:19.5]} 30... e4 {[%clk 0:00:20.3]} 31. Qd5 {[%clk 0:00:11.2]} 31... e3
{[%clk 0:00:20.2]} 32. Qc5 {[%clk 0:00:08.5]} 32... Qf1+ {[%clk 0:00:16.7]} 33.
Kb2 {[%clk 0:00:08.7]} 33... e2 {[%clk 0:00:17.2]} 0-1

[Event "*** Titled Tuesday Blitz"]
[Site "Chess.com"]
[Date "2020.04.14"]
[Round "5"]
[White "2nd_life"]
[Black "EndgameGrinder"]
[Result "0-1"]
[WhiteElo "2423"]
[BlackElo "2688"]
[TimeControl "180+1"]
[EndTime "10:50:48 PDT"]
[Termination "EndgameGrinder won on time"]

1. e4 {[%clk 0:03:00.9]} 1... c5 {[%clk 0:02:59.9]} 2. Nf3 {[%clk 0:03:00.7]}
2... e6 {[%clk 0:03:00.5]} 3. c3 {[%clk 0:03:00.4]} 3... Nf6 {[%clk 0:03:00.2]}
4. e5 {[%clk 0:03:00.6]} 4... Nd5 {[%clk 0:03:00.9]} 5. d4 {[%clk 0:03:01]} 5...
cxd4 {[%clk 0:03:01.8]} 6. cxd4 {[%clk 0:03:01.5]} 6... d6 {[%clk 0:03:02.4]} 7.
Bc4 {[%clk 0:03:01.7]} 7... Be7 {[%clk 0:03:02.4]} 8. O-O {[%clk 0:03:01.6]}
8... O-O {[%clk 0:03:02.9]} 9. Qe2 {[%clk 0:03:01.4]} 9... b6 {[%clk 0:03:03.4]}
10. Re1 {[%clk 0:02:38.2]} 10... a5 {[%clk 0:02:54.7]} 11. Nc3 {[%clk
0:02:16.9]} 11... Nxc3 {[%clk 0:02:51.9]} 12. bxc3 {[%clk 0:02:16.9]} 12... d5
{[%clk 0:02:49.4]} 13. Bd3 {[%clk 0:02:15.5]} 13... Ba6 {[%clk 0:02:50]} 14.
Bxa6 {[%clk 0:02:09.3]} 14... Nxa6 {[%clk 0:02:49.1]} 15. a4 {[%clk 0:02:07.8]}
15... Nb8 {[%clk 0:02:48.7]} 16. Rb1 {[%clk 0:02:05]} 16... Nd7 {[%clk
0:02:48.6]} 17. Qd3 {[%clk 0:01:51]} 17... Rc8 {[%clk 0:02:46.6]} 18. g3 {[%clk
0:01:25.4]} 18... Rc4 {[%clk 0:02:45]} 19. Nd2 {[%clk 0:01:21.2]} 19... Rc6
{[%clk 0:02:34.4]} 20. Re3 {[%clk 0:01:18.9]} 20... f5 {[%clk 0:02:24]} 21. exf6
{[%clk 0:01:13.2]} 21... Nxf6 {[%clk 0:02:24.2]} 22. f3 {[%clk 0:01:00.6]} 22...
Qc8 {[%clk 0:01:50.5]} 23. Kg2 {[%clk 0:00:57.8]} 23... Bd6 {[%clk 0:01:50.1]}
24. Bb2 {[%clk 0:00:50.8]} 24... Re8 {[%clk 0:01:43.7]} 25. Rbe1 {[%clk
0:00:50.7]} 25... Rc7 {[%clk 0:01:42.2]} 26. Qe2 {[%clk 0:00:48.2]} 26... Rce7
{[%clk 0:01:41.8]} 27. Qb5 {[%clk 0:00:41]} 27... Qc7 {[%clk 0:01:27.5]} 28. Nb3
{[%clk 0:00:28.4]} 28... h5 {[%clk 0:01:25.3]} 29. Nc1 {[%clk 0:00:17.6]} 29...
h4 {[%clk 0:01:25.4]} 30. f4 {[%clk 0:00:17.2]} 30... Ne4 {[%clk 0:01:16.7]} 31.
Rxe4 {[%clk 0:00:11.6]} 31... dxe4 {[%clk 0:01:17.6]} 32. Rxe4 {[%clk
0:00:11.8]} 32... hxg3 {[%clk 0:01:05]} 33. hxg3 {[%clk 0:00:11.7]} 33... Qb7
{[%clk 0:01:00.5]} 34. Kf3 {[%clk 0:00:10.2]} 34... Qd5 {[%clk 0:00:50.2]} 35.
Nd3 {[%clk 0:00:04.1]} 35... Qxb5 {[%clk 0:00:45.7]} 36. axb5 {[%clk 0:00:05]}
36... a4 {[%clk 0:00:44.9]} 37. c4 {[%clk 0:00:05]} 37... a3 {[%clk 0:00:43]}
38. Ba1 {[%clk 0:00:05.1]} 38... Rc8 {[%clk 0:00:39.8]} 39. c5 {[%clk
0:00:03.4]} 39... bxc5 {[%clk 0:00:39.9]} 40. dxc5 {[%clk 0:00:03.8]} 40... Bxc5
{[%clk 0:00:40.5]} 41. Rc4 {[%clk 0:00:04.1]} 41... Rec7 {[%clk 0:00:40.7]} 42.
Be5 {[%clk 0:00:03.7]} 42... a2 {[%clk 0:00:40.3]} 0-1